{"text_format":"1","workbook":"xlsx","n_sheets":2,"sheets":["Overview","Generator"],"not_rendered":{"charts":0,"images":1,"macros":1,"external_links":0,"defined_names":1,"comments":0,"pivot_tables":0},"unopened":[],"bounds":{"document_bytes":16777216,"sheet_cells":100000,"rows_first":2000,"rows_last":500,"rows_between":2000,"halvings":0,"cell_chars":16384,"cell_head_chars":4096},"cells_cut":0,"cells_raw":0,"read":"whole","date_system":"1900"}

{"sheet":"Overview","index":0,"n_rows":37,"n_cols":9,"rows_kept":37,"cut":false,"hidden":false,"merged":[[38,2,44,8],[7,2,7,4],[9,2,9,4],[11,2,11,4],[1,1,1,8],[3,1,3,8],[13,2,13,4],[17,2,17,4],[20,2,20,4],[18,2,18,4],[19,2,19,4]]}
[]
[]
[]
[null,"MLO Register Form (overview)"]
[]
[null,"User Details"]
[]
[null,"Authorised name",null,null,null,null,null,null,"Cell is locked"]
[]
[null,"Title",null,null,null,null,null,null,"Cell is editable"]
[]
[null,"Email"]
[]
[null,"Company"]
[]
[null,"Create schedule generators worksheets"]
[]
[null,null,"Generator Scheduled Name"]
[]
[]
[]
[]
[null,"Summary of all trading groups and MLO nominees total capacities"]
[null,null,"Please manually enter the total capacity (MW) for all Trading Groups",null,null,null,"Please manually enter the total capacity (MW) for all MLO nominees"]
[null,null,"Trading Group Name ","Trading Group ABN","Trading Group Capacity (MW)",null,"MLO nominee","MLO nominee ABN","MLO nominee Capacity (MW)"]
[]
[]
[]
[]
[]
[]
[]
[]
[]
[]
[]
[null,"Additional Information"]

{"sheet":"Generator","index":1,"n_rows":84,"n_cols":13,"rows_kept":84,"cut":false,"hidden":true,"merged":[[72,2,72,4],[72,5,72,8],[1,1,1,9],[3,1,3,11],[7,2,7,4],[71,2,71,4],[71,5,71,8],[73,2,73,4],[73,5,73,8],[74,2,74,4],[74,5,74,8],[75,2,75,4],[75,5,75,8],[76,2,76,4],[76,5,76,8],[77,2,77,4],[77,5,77,8],[78,2,78,4],[78,5,78,8],[85,2,91,8],[79,2,79,4],[79,5,79,8],[80,2,80,4],[80,5,80,8],[81,2,81,4],[81,5,81,8]]}
[]
[]
[]
[null,{"$f":"\"MLO Register form (\" &C8 &\")\"","v":"MLO Register form ()"}]
[]
[null,"Registered Scheduled Capacity"]
[]
[null,"Scheduled Generator Name"]
[]
[null,"Scheduled Generator DUIDs","DUID","Effective Date","Registered Capacity(MW)"]
[null,null,null,null,null,null,null,null,null,null,null,null,{"$f":"isDATETYPE(D11)","v":false}]
[null,null,null,null,null,null,null,null,null,null,null,null,{"$f":"isDATETYPE(D12)","v":false}]
[null,null,null,null,null,null,null,null,null,null,null,null,false]
[null,null,null,null,null,null,null,null,null,null,null,null,false]
[null,null,null,null,null,null,null,null,null,null,null,null,false]
[null,null,null,null,null,null,null,null,null,null,null,null,false]
[null,null,null,null,null,null,null,null,null,null,null,null,false]
[null,null,null,null,null,null,null,null,null,null,null,null,false]
[null,null,null,null,null,null,null,null,null,null,null,null,false]
[null,null,null,null,null,null,null,null,null,null,null,null,{"$f":"isDATETYPE(G1120)","v":false}]
[]
[null,"Trading Rights"]
[]
[null,null,"DUID","Effective Date","Trading Rights Held(%)","Trading Rights Held(MW)","Trading Right Holder Name ","Trading Right Holder ABN","Trading Group Name ","Trading Group ABN","MLO nominee","MLO nominee ABN"]
[]
[]
[]
[]
[]
[]
[]
[]
[]
[]
[]
[]
[]
[]
[]
[]
[]
[]
[]
[]
[]
[null,"Generator Ownership"]
[]
[null,null,"DUID","Effective Date","Ownership(%)","Owner Name","Owner ABN","Controlling Entity Name ","Controlling Entity ABN"]
[null,null,null,null,null,null,null,null,null,null,null,null,{"$f":"isDATETYPE(D49)","v":false}]
[null,null,null,null,null,null,null,null,null,null,null,null,false]
[null,null,null,null,null,null,null,null,null,null,null,null,false]
[null,null,null,null,null,null,null,null,null,null,null,null,false]
[null,null,null,null,null,null,null,null,null,null,null,null,false]
[null,null,null,null,null,null,null,null,null,null,null,null,false]
[null,null,null,null,null,null,null,null,null,null,null,null,false]
[null,null,null,null,null,null,null,null,null,null,null,null,false]
[null,null,null,null,null,null,null,null,null,null,null,null,false]
[null,null,null,null,null,null,null,null,null,null,null,null,false]
[null,null,null,null,null,null,null,null,null,null,null,null,false]
[null,null,null,null,null,null,null,null,null,null,null,null,false]
[null,null,null,null,null,null,null,null,null,null,null,null,false]
[null,null,null,null,null,null,null,null,null,null,null,null,false]
[null,null,null,null,null,null,null,null,null,null,null,null,false]
[null,null,null,null,null,null,null,null,null,null,null,null,false]
[null,null,null,null,null,null,null,null,null,null,null,null,false]
[null,null,null,null,null,null,null,null,null,null,null,null,false]
[null,null,null,null,null,null,null,null,null,null,null,null,false]
[null,null,null,null,null,null,null,null,null,null,null,null,false]
[]
[null,"Supporting files attached"]
[]
[null,null,"File name",null,null,"Description"]
[]
[]
[]
[]
[]
[]
[]
[]
[]
[]
[]
[null,"Additional Information"]